fUSD/lending_fUSD_20240714
["ID","MTS","AMOUNT","RATE_DAILY","PERIOD"]
[332119605,1720972253313,-5364.37,0.00013808,2]
[332119606,1720972253322,-500.0,0.00013808,2]
[332119607,1720972253332,-500.0,0.00013808,2]
[332119608,1720972253341,-500.0,0.00013808,2]
[332119609,1720972253351,-500.0,0.00013808,2]
[332119610,1720972253364,-500.0,0.00013808,2]
[332119611,1720972253374,-500.0,0.00013808,2]
[332119612,1720972253383,-500.0,0.00013808,2]
[332119613,1720972253393,-500.0,0.00013808,2]
[332119614,1720972253403,-500.0,0.00013808,2]
[332119615,1720972253414,-500.0,0.00013808,2]
[332119616,1720972253424,-500.0,0.00013808,2]
[332119617,1720972253435,-500.0,0.00013808,2]
[332119618,1720972253445,-500.0,0.00013808,2]
[332119619,1720972253454,-500.0,0.00013808,2]
[332119620,1720972253463,-500.0,0.00013808,2]
[332119621,1720972253472,-500.0,0.00013808,2]
[332119622,1720972253481,-500.0,0.00013808,2]
[332119623,1720972253491,-500.0,0.00013808,2]
[332119624,1720972253500,-500.0,0.00013808,2]
[332119625,1720972253509,-500.0,0.00013808,2]
[332119626,1720972253518,-500.0,0.00013808,2]
[332119627,1720972253528,-500.0,0.00013808,2]
[332119628,1720972253538,-500.0,0.00013808,2]
[332119629,1720972253548,-637.73,0.00013808,2]
[332119630,1720972253557,-500.0,0.00013808,2]
[332119631,1720972253566,-500.0,0.00013808,2]
[332119632,1720972253576,-1563.38,0.00013808,2]
[332119633,1720972253586,-500.0,0.00013808,2]
[332119634,1720972253595,-500.0,0.00013808,2]
[332119635,1720972253605,-500.0,0.00013808,2]
[332119636,1720972253614,-500.0,0.00013808,2]
[332119637,1720972253624,-151.0,0.00013808,2]
[332119638,1720972253634,-632.45,0.00013808,2]
[332119639,1720972253643,-870.24,0.00013808,2]
[332119640,1720972253653,-811.64,0.00013808,2]
[332119641,1720972253664,-795.98,0.00013808,2]
[332119642,1720972253673,-1406.8,0.00013808,2]
[332119643,1720972253683,-500.0,0.00013808,2]
[332119644,1720972253691,-500.0,0.00013808,2]
[332119645,1720972253701,-500.0,0.00013808,2]
[332119646,1720972253712,-500.0,0.00013808,2]
[332119647,1720972253721,-1134.57,0.00013808,2]
[332119648,1720972253731,-500.0,0.00013808,2]
[332119649,1720972253740,-500.0,0.00013808,2]
[332119650,1720972253749,-500.0,0.00013808,2]
[332119651,1720972253760,-500.0,0.00013808,2]
[332119652,1720972253769,-500.0,0.00013808,2]
[332119653,1720972253778,-321.39912147,0.00013808,2]
[332119654,1720972253788,-500.0,0.00013808,2]
[332119655,1720972253797,-500.0,0.00013808,2]
[332119656,1720972253807,-500.0,0.00013808,2]
[332119657,1720972253817,-500.0,0.00013808,2]
[332119658,1720972253827,-500.0,0.00013808,2]
[332119659,1720972253836,-500.0,0.00013808,2]
[332119660,1720972253846,-500.0,0.00013808,2]
[332119661,1720972253856,-500.0,0.00013808,2]
[332119662,1720972253865,-528.01,0.00013808,2]
[332119663,1720972253875,-500.0,0.00013808,2]
[332119664,1720972253885,-863.4,0.00013808,2]
[332119665,1720972253894,-743.16,0.00013808,2]
[332119666,1720972253904,-500.0,0.00013808,2]
[332119667,1720972253914,-500.0,0.00013808,2]
[332119668,1720972253923,-500.0,0.00013808,2]
[332119669,1720972253933,-716.88,0.00013808,2]
[332119670,1720972253942,-500.0,0.00013808,2]
[332119671,1720972253952,-2047.74,0.00013808,2]
[332119672,1720972253961,-567.13,0.00013808,2]
[332119673,1720972253971,-500.0,0.00013808,2]
[332119674,1720972253980,-1058.64,0.00013808,2]
[332119675,1720972253990,-500.0,0.00013808,2]
[332119676,1720972253999,-467.09767553,0.00013808,2]
[332119677,1720972254008,-500.0,0.00013808,2]
[332119678,1720972254018,-945.97,0.00013808,2]
[332119679,1720972254027,-500.0,0.00013808,2]
[332119680,1720972254037,-500.0,0.00013808,2]
[332119681,1720972254046,-1598.27,0.00013808,2]
[332119682,1720972254056,-532.64,0.00013808,2]
[332119683,1720972254066,-500.0,0.00013808,2]
[332119684,1720972254076,-540.32399875,0.00013808,2]
[332119685,1720972254085,-500.0,0.00013808,2]
[332119686,1720972254095,-500.0,0.00013808,2]
[332119687,1720972254105,-500.0,0.00013808,2]
[332119688,1720972254115,-6027.45,0.00013808,2]
[332119689,1720972254125,-500.0,0.00013808,2]
[332119690,1720972254134,-904.14,0.00013808,2]
[332119691,1720972254144,-219.214178,0.00013808,2]
[332119692,1720972254153,-577.69,0.00013808,2]
[332119693,1720972254163,-1038.09,0.00013808,2]
[332119694,1720972254173,-500.0,0.00013808,2]
[332119695,1720972254182,-500.0,0.00013808,2]
[332119696,1720972254192,-500.0,0.00013808,2]
[332119697,1720972254201,-219.214178,0.00013808,2]
[332119698,1720972254211,-500.0,0.00013808,2]
[332119699,1720972254220,-642.95,0.00013808,2]
[332119700,1720972254230,-500.0,0.00013808,2]
[332119701,1720972254239,-719.25,0.00013808,2]
[332119702,1720972254248,-500.0,0.00013808,2]
[332119703,1720972254258,-500.0,0.00013808,2]
[332119704,1720972254267,-500.0,0.00013808,2]
[332119705,1720972254276,-500.0,0.00013808,2]
[332119706,1720972254286,-546.02,0.00013808,2]
[332119707,1720972254296,-933.38,0.00013808,2]
[332119708,1720972254305,-716.32,0.00013808,2]
[332119709,1720972254314,-500.0,0.00013808,2]
[332119710,1720972254324,-403.4615413,0.00013808,2]
[332119711,1720972254334,-1477.43,0.00013808,2]
[332119712,1720972254343,-500.0,0.00013808,2]
[332119713,1720972254357,-500.0,0.00013808,2]
[332119714,1720972254366,-728.22,0.00013808,2]
[332119715,1720972254376,-500.0,0.00013808,2]
[332119716,1720972254387,-500.0,0.00013808,2]
[332119717,1720972254397,-500.0,0.00013808,2]
[332119718,1720972254406,-500.0,0.00013808,2]
[332119719,1720972254416,-500.0,0.00013808,2]
[332119720,1720972254426,-811.27,0.00013808,2]
[332119721,1720972254437,-319.71,0.00013808,2]
[332119722,1720972254447,-518.2,0.00013808,2]
[332119723,1720972254457,-623.31,0.00013808,2]
[332119724,1720972254466,-500.0,0.00013808,2]
[332119725,1720972254476,-596.59,0.00013808,2]
[332119726,1720972254485,-654.13,0.00013808,2]
[332119727,1720972254495,-500.0,0.00013808,2]
[332119728,1720972254504,-536.31,0.00013808,2]
[332119729,1720972254514,-500.0,0.00013808,2]
[332119730,1720972254524,-247.18,0.00013808,2]
[332119731,1720972254534,-566.21,0.00013808,2]
[332119732,1720972254543,-7866.28,0.00013808,2]
[332119733,1720972254553,-500.0,0.00013808,2]
[332119734,1720972254563,-839.31,0.00013808,2]
[332119735,1720972254573,-500.0,0.00013808,2]
[332119736,1720972254583,-500.0,0.00013808,2]
[332119737,1720972254592,-500.0,0.00013808,2]
[332119738,1720972254601,-500.0,0.00013808,2]
[332119739,1720972254611,-151.0,0.00013808,2]
[332119740,1720972254620,-500.0,0.00013808,2]
[332119741,1720972254629,-500.0,0.00013808,2]
[332119742,1720972254639,-1238.93,0.00013808,2]
[332119743,1720972254648,-500.0,0.00013808,2]
[332119744,1720972254658,-226.094568,0.00013808,2]
[332119745,1720972254668,-973.98,0.00013808,2]
[332119746,1720972254677,-500.0,0.00013808,2]
[332119747,1720972254687,-500.0,0.00013808,2]
[332119748,1720972254696,-232.55729592,0.00013808,2]
[332119749,1720972254706,-500.0,0.00013808,2]
[332119750,1720972254715,-500.0,0.00013808,2]
[332119751,1720972254724,-500.0,0.00013808,2]
[332119752,1720972254734,-500.0,0.00013808,2]
[332119753,1720972254743,-500.0,0.00013808,2]
[332119754,1720972254752,-1074.12,0.00013808,2]
[332119755,1720972254762,-500.0,0.00013808,2]
[332119756,1720972254771,-500.0,0.00013808,2]
[332119757,1720972254781,-500.0,0.00013808,2]
[332119758,1720972254790,-500.0,0.00013808,2]
[332119759,1720972254800,-500.0,0.00013808,2]
[332119760,1720972254809,-500.0,0.00013808,2]
[332119761,1720972254818,-500.0,0.00013808,2]
[332119762,1720972254828,-500.0,0.00013808,2]
[332119763,1720972254837,-500.0,0.00013808,2]
[332119764,1720972254846,-500.0,0.00013808,2]
[332119765,1720972254855,-902.88,0.00013808,2]
[332119766,1720972254865,-500.0,0.00013808,2]
[332119767,1720972254874,-500.0,0.00013808,2]
[332119768,1720972254884,-500.0,0.00013808,2]
[332119769,1720972254893,-500.0,0.00013808,2]
[332119770,1720972254902,-500.0,0.00013808,2]
[332119771,1720972254912,-500.0,0.00013808,2]
[332119772,1720972254921,-500.0,0.00013808,2]
[332119773,1720972254930,-500.0,0.00013808,2]
[332119774,1720972254940,-500.0,0.00013808,2]
[332119775,1720972254949,-500.0,0.00013808,2]
[332119776,1720972254959,-272.1,0.00013808,2]
[332119777,1720972254968,-500.0,0.00013808,2]
[332119778,1720972254978,-500.0,0.00013808,2]
[332119779,1720972254987,-324.57,0.00013808,2]
[332119780,1720972254997,-512.14,0.00013808,2]
[332119781,1720972255007,-614.83,0.00013808,2]
[332119782,1720972255016,-779.1,0.00013808,2]
[332119783,1720972255026,-500.0,0.00013808,2]
[332119784,1720972255035,-500.0,0.00013808,2]
[332119785,1720972255044,-571.88,0.00013808,2]
[332119786,1720972255054,-500.0,0.00013808,2]
[332119787,1720972255063,-500.0,0.00013808,2]
[332119788,1720972255072,-500.0,0.00013808,2]
[332119789,1720972255083,-500.0,0.00013808,2]
[332119790,1720972255092,-500.0,0.00013808,2]
[332119791,1720972255102,-1413.29,0.00013808,2]
[332119792,1720972255112,-500.0,0.00013808,2]
[332119793,1720972255121,-221.23,0.00013808,2]
[332119794,1720972255131,-500.0,0.00013808,2]
[332119795,1720972255140,-150.0,0.00013808,2]
[332119796,1720972255149,-154.526,0.00013808,2]
[332119797,1720972255160,-591.10476625,0.00013808,2]
[332119798,1720972255169,-47485.0,0.00013808,2]
[332119799,1720972255178,-2716.0,0.00013808,2]
[332119800,1720972255190,-5812.0,0.00013808,2]
[332119801,1720972255200,-582.02,0.00013809,2]
[332119802,1720972255210,-500.0,0.00013809,2]
[332119803,1720972255219,-533.76,0.00013809,2]
[332119804,1720972255228,-500.0,0.00013809,2]
[332119805,1720972255237,-500.0,0.00013809,2]
[332119806,1720972255246,-500.0,0.00013809,2]
[332119807,1720972255257,-500.0,0.00013809,2]
[332119808,1720972255266,-500.0,0.00013809,2]
[332119809,1720972255275,-500.0,0.00013809,2]
[332119810,1720972255284,-500.0,0.00013809,2]
[332119811,1720972255294,-20836.19915367,0.00013817,2]
[332119812,1720972255305,-151.0,0.00013817,2]
[332119813,1720972255314,-151.0,0.00013832,2]
[332119814,1720972255323,-159.3216,0.00013832,2]
[332119815,1720972255333,-159.3216,0.00013832,2]
[332119816,1720972255343,-55350.51466815,0.00013833,2]
[332119817,1720972255355,-219.214178,0.00013833,2]
[332119818,1720972255366,-219.214178,0.00013833,2]
[332119819,1720972255376,-2000.0,0.00013836,2]
[332119820,1720972255385,-200.0,0.00013836,2]
[332119821,1720972255395,-155.29918908,0.00013849,2]
[332119822,1720972255407,-11694.6525318,0.0001386,2]
[332119823,1720972255416,-500.0,0.00013863,2]
[332119824,1720972255425,-500.0,0.00013863,2]
[332119825,1720972255435,-500.0,0.00013863,2]
[332119826,1720972255444,-388.53281791,0.00013863,2]
[332119827,1720972255453,-500.0,0.00013863,2]
[332119828,1720972255462,-500.0,0.00013863,2]
[332119829,1720972255471,-582.27,0.00013863,2]
[332119830,1720972255481,-500.0,0.00013863,2]
[332119831,1720972255490,-500.0,0.00013863,2]
[332119832,1720972255499,-301.25,0.00013863,2]
[332119833,1720972255508,-500.0,0.00013863,2]
[332119834,1720972255517,-500.0,0.00013863,2]
[332119835,1720972255526,-615.03,0.00013863,2]
[332119836,1720972255535,-500.0,0.00013863,2]
[332119837,1720972255544,-500.0,0.00013863,2]
[332119838,1720972255553,-500.0,0.00013863,2]
[332119839,1720972255563,-500.0,0.00013863,2]
[332119840,1720972255573,-381.27037036,0.00013863,2]
[332119841,1720972255584,-1552.05,0.00013863,2]
[332119842,1720972255594,-500.0,0.00013863,2]
[332119843,1720972255606,-500.0,0.00013863,2]
[332119844,1720972255616,-500.0,0.00013863,2]
[332119845,1720972255625,-575.93,0.00013863,2]
[332119846,1720972255635,-500.0,0.00013863,2]
[332119847,1720972255644,-500.0,0.00013863,2]
[332119848,1720972255654,-500.0,0.00013863,2]
[332119849,1720972255664,-500.0,0.00013863,2]
[332119850,1720972255674,-500.0,0.00013863,2]
[332119851,1720972255685,-867.44,0.00013863,2]
[332119852,1720972255695,-500.0,0.00013863,2]
[332119853,1720972255705,-500.0,0.00013863,2]
[332119854,1720972255714,-500.0,0.00013863,2]
[332119855,1720972255724,-500.0,0.00013863,2]
[332119856,1720972255733,-500.0,0.00013863,2]
[332119857,1720972255743,-500.0,0.00013863,2]
[332119858,1720972255752,-500.0,0.00013863,2]
[332119859,1720972255761,-500.0,0.00013863,2]
[332119860,1720972255771,-573.09918604,0.00013863,2]
[332119861,1720972255780,-500.0,0.00013863,2]
[332119862,1720972255789,-500.0,0.00013863,2]
[332119863,1720972255963,-500.0,0.00013863,2]
[332119864,1720972255973,-500.0,0.00013863,2]
[332119865,1720972255982,-500.0,0.00013863,2]
[332119866,1720972255992,-500.0,0.00013863,2]
[332119867,1720972256003,-500.0,0.00013863,2]
[332119868,1720972256012,-500.0,0.00013863,2]
[332119869,1720972256022,-500.0,0.00013863,2]
[332119870,1720972256032,-500.0,0.00013863,2]
[332119871,1720972256042,-500.0,0.00013863,2]
[332119872,1720972256051,-500.0,0.00013863,2]
[332119873,1720972256061,-500.0,0.00013863,2]
[332119874,1720972256070,-500.0,0.00013863,2]
[332119875,1720972256079,-500.0,0.00013863,2]
[332119876,1720972256089,-500.0,0.00013863,2]
[332119877,1720972256098,-500.0,0.00013863,2]
[332119878,1720972256107,-500.0,0.00013863,2]
[332119879,1720972256117,-500.0,0.00013863,2]
[332119880,1720972256127,-500.0,0.00013863,2]
[332119881,1720972256138,-500.0,0.00013863,2]
[332119882,1720972256147,-500.0,0.00013863,2]
[332119883,1720972256158,-500.0,0.00013863,2]
[332119884,1720972256167,-500.0,0.00013863,2]
[332119885,1720972256176,-500.0,0.00013863,2]
[332119886,1720972256186,-500.0,0.00013863,2]
[332119887,1720972256196,-693.27,0.00013863,2]
[332119888,1720972256205,-553.11,0.00013863,2]
[332119889,1720972256214,-500.0,0.00013863,2]
[332119890,1720972256224,-506.9,0.00013863,2]
[332119891,1720972256234,-762.63,0.00013863,2]
[332119892,1720972256244,-874.13,0.00013863,2]
[332119893,1720972256255,-270.80879563,0.00013863,2]
[332119894,1720972256264,-500.0,0.00013863,2]
[332119895,1720972256274,-649.04368602,0.00013863,2]
[332119896,1720972256283,-500.0,0.00013863,2]
[332119897,1720972256292,-500.0,0.00013863,2]
[332119898,1720972256301,-500.0,0.00013863,2]
[332119899,1720972256311,-968.28,0.00013863,2]
[332119900,1720972256320,-500.0,0.00013863,2]
[332119901,1720972256330,-902.36,0.00013863,2]
[332119902,1720972256339,-500.0,0.00013863,2]
[332119903,1720972256348,-500.0,0.00013863,2]
[332119904,1720972256361,-500.0,0.00013863,2]
[332119905,1720972256370,-500.0,0.00013863,2]
[332119906,1720972256379,-500.0,0.00013863,2]
[332119907,1720972256388,-636.14,0.00013863,2]
[332119908,1720972256398,-500.0,0.00013863,2]
[332119909,1720972256407,-500.0,0.00013863,2]
[332119910,1720972256416,-561.14,0.00013863,2]
[332119911,1720972256426,-500.0,0.00013863,2]
[332119912,1720972256435,-517.64,0.00013863,2]
[332119913,1720972256445,-500.0,0.00013863,2]
[332119914,1720972256455,-500.0,0.00013863,2]
[332119915,1720972256464,-500.0,0.00013863,2]
[332119916,1720972256473,-500.0,0.00013863,2]
[332119917,1720972256482,-1031.55,0.00013863,2]
[332119918,1720972256491,-572.27,0.00013863,2]
[332119919,1720972256501,-500.0,0.00013863,2]
[332119920,1720972256510,-500.0,0.00013863,2]
[332119921,1720972256518,-500.0,0.00013863,2]
[332119922,1720972256527,-500.0,0.00013863,2]
[332119923,1720972256536,-841.04,0.00013863,2]
[332119924,1720972256545,-778.41,0.00013863,2]
[332119925,1720972256554,-769.2,0.00013863,2]
[332119926,1720972256563,-801.33,0.00013863,2]
[332119927,1720972256572,-223.14,0.00013863,2]
[332119928,1720972256582,-562.16,0.00013863,2]
[332119929,1720972256591,-500.0,0.00013863,2]
[332119930,1720972256601,-500.0,0.00013863,2]
[332119931,1720972256610,-267.97224629,0.00013863,2]
[332119932,1720972256620,-538.37,0.00013863,2]
[332119933,1720972256629,-277.89,0.00013863,2]
[332119934,1720972256639,-500.0,0.00013863,2]
[332119935,1720972256648,-500.0,0.00013863,2]
[332119936,1720972256658,-338.48162936,0.00013863,2]
[332119937,1720972256667,-500.0,0.00013863,2]
[332119938,1720972256676,-500.0,0.00013863,2]
[332119939,1720972256685,-500.0,0.00013863,2]
[332119940,1720972256694,-500.0,0.00013863,2]
[332119941,1720972256704,-575.15,0.00013863,2]
[332119942,1720972256713,-223.79,0.00013863,2]
[332119943,1720972256723,-520.26,0.00013863,2]
[332119944,1720972256732,-500.0,0.00013863,2]
[332119945,1720972256741,-500.0,0.00013863,2]
[332119946,1720972256750,-604.63440369,0.00013863,2]
[332119947,1720972256760,-500.0,0.00013863,2]
[332119948,1720972256769,-500.0,0.00013863,2]
[332119949,1720972256778,-500.0,0.00013863,2]
[332119950,1720972256787,-563.38,0.00013863,2]
[332119951,1720972256796,-500.0,0.00013863,2]
[332119952,1720972256805,-585.7,0.00013863,2]
[332119953,1720972256814,-500.0,0.00013863,2]
[332119954,1720972256824,-500.0,0.00013863,2]
[332119955,1720972256833,-500.0,0.00013863,2]
[332119956,1720972256843,-500.0,0.00013863,2]
[332119957,1720972256852,-500.0,0.00013863,2]
[332119958,1720972256861,-500.0,0.00013863,2]
[332119959,1720972256871,-500.0,0.00013863,2]
[332119960,1720972256881,-636.43,0.00013863,2]
[332119961,1720972256890,-554.41,0.00013863,2]
[332119962,1720972256899,-500.0,0.00013863,2]
[332119963,1720972256910,-500.0,0.00013863,2]
[332119964,1720972256919,-500.0,0.00013863,2]
[332119965,1720972256928,-500.0,0.00013863,2]
[332119966,1720972256937,-500.0,0.00013863,2]
[332119967,1720972256946,-663.91,0.00013863,2]
[332119968,1720972256955,-500.0,0.00013863,2]
[332119969,1720972256964,-500.0,0.00013863,2]
[332119970,1720972256973,-500.0,0.00013863,2]
[332119971,1720972256982,-500.0,0.00013863,2]
[332119972,1720972256991,-500.0,0.00013863,2]
[332119973,1720972257000,-737.13,0.00013863,2]
[332119974,1720972257010,-500.0,0.00013863,2]
[332119975,1720972257019,-500.0,0.00013863,2]
[332119976,1720972257028,-500.0,0.00013863,2]
[332119977,1720972257037,-500.0,0.00013863,2]
[332119978,1720972257046,-537.97,0.00013863,2]
[332119979,1720972257056,-500.0,0.00013863,2]
[332119980,1720972257066,-500.0,0.00013863,2]
[332119981,1720972257075,-500.0,0.00013863,2]
[332119982,1720972257085,-500.0,0.00013863,2]
[332119983,1720972257095,-500.0,0.00013863,2]
[332119984,1720972257105,-583.55,0.00013863,2]
[332119985,1720972257114,-500.0,0.00013863,2]
[332119986,1720972257123,-333.02824703,0.00013863,2]
[332119987,1720972257132,-412.9108482,0.00013863,2]
[332119988,1720972257141,-500.0,0.00013863,2]
[332119989,1720972257150,-500.0,0.00013863,2]
[332119990,1720972257160,-500.0,0.00013863,2]
[332119991,1720972257169,-500.0,0.00013863,2]
[332119992,1720972257178,-500.0,0.00013863,2]
[332119993,1720972257187,-500.0,0.00013863,2]
[332119994,1720972257196,-672.18,0.00013863,2]
[332119995,1720972257206,-500.0,0.00013863,2]
[332119996,1720972257215,-949.45,0.00013863,2]
[332119997,1720972257225,-500.0,0.00013863,2]
[332119998,1720972257234,-500.0,0.00013863,2]
[332119999,1720972257243,-571.00541875,0.00013863,2]
[332120000,1720972257253,-151.0,0.00013863,2]
[332120001,1720972257263,-769.77,0.00013863,2]
[332120002,1720972257273,-748.65,0.00013863,2]
[332120003,1720972257282,-500.0,0.00013863,2]
[332120004,1720972257292,-151.0,0.00013863,2]
[332120005,1720972257301,-500.0,0.00013863,2]
[332120006,1720972257311,-500.0,0.00013863,2]
[332120007,1720972257320,-500.0,0.00013863,2]
[332120008,1720972257329,-532.85,0.00013863,2]
[332120009,1720972257339,-500.0,0.00013863,2]
[332120010,1720972257348,-500.0,0.00013863,2]
[332120011,1720972257360,-1125.37,0.00013863,2]
[332120012,1720972257370,-500.0,0.00013863,2]
[332120013,1720972257379,-314.23721791,0.00013863,2]
[332120014,1720972257388,-653.85,0.00013863,2]
[332120015,1720972257398,-500.0,0.00013863,2]
[332120016,1720972257410,-545.27,0.00013863,2]
[332120017,1720972257419,-500.0,0.00013863,2]
[332120018,1720972257429,-500.0,0.00013863,2]
[332120019,1720972257440,-500.0,0.00013863,2]
[332120020,1720972257450,-500.0,0.00013863,2]
[332120021,1720972257460,-500.0,0.00013863,2]
[332120022,1720972257470,-500.0,0.00013863,2]
[332120023,1720972257480,-299.034949,0.00013863,2]
[332120024,1720972257489,-500.0,0.00013863,2]
[332120025,1720972257499,-299.034949,0.00013863,2]
[332120026,1720972257509,-633.54,0.00013863,2]
[332120027,1720972257520,-500.0,0.00013863,2]
[332120028,1720972257531,-533.27,0.00013863,2]
[332120029,1720972257540,-5364.37,0.00013863,2]
[332120030,1720972257549,-500.0,0.00013863,2]
[332120031,1720972257559,-500.0,0.00013863,2]
[332120032,1720972257569,-589.81,0.00013863,2]
[332120033,1720972257579,-500.0,0.00013863,2]
[332120034,1720972257588,-500.0,0.00013863,2]
[332120035,1720972257598,-500.0,0.00013863,2]
[332120036,1720972257608,-500.0,0.00013863,2]
[332120037,1720972257617,-500.0,0.00013863,2]
[332120038,1720972257627,-500.0,0.00013863,2]
[332120039,1720972257636,-500.0,0.00013863,2]
[332120040,1720972257646,-500.0,0.00013863,2]
[332120041,1720972257655,-500.0,0.00013863,2]
[332120042,1720972257664,-500.0,0.00013863,2]
[332120043,1720972257674,-500.0,0.00013863,2]
[332120044,1720972257683,-500.0,0.00013863,2]
[332120045,1720972257693,-500.0,0.00013863,2]
[332120046,1720972257703,-270.83,0.00013863,2]
[332120047,1720972257712,-500.0,0.00013863,2]
[332120048,1720972257722,-500.0,0.00013863,2]
[332120049,1720972257731,-500.0,0.00013863,2]
[332120050,1720972257741,-500.0,0.00013863,2]
[332120051,1720972257750,-604.54347873,0.00013863,2]
[332120052,1720972257759,-500.0,0.00013863,2]
[332120053,1720972257768,-1563.38,0.00013863,2]
[332120054,1720972257778,-500.0,0.00013863,2]
[332120055,1720972257787,-500.0,0.00013863,2]
[332120056,1720972257796,-500.0,0.00013863,2]
[332120057,1720972257805,-500.0,0.00013863,2]
[332120058,1720972257814,-271.520885,0.00013863,2]
[332120059,1720972257823,-632.45,0.00013863,2]
[332120060,1720972257832,-870.24,0.00013863,2]
[332120061,1720972257842,-811.64,0.00013863,2]
[332120062,1720972257851,-795.98,0.00013863,2]
[332120063,1720972257860,-1406.8,0.00013863,2]
[332120064,1720972257869,-500.0,0.00013863,2]
[332120065,1720972257879,-500.0,0.00013863,2]
[332120066,1720972257888,-500.0,0.00013863,2]
[332120067,1720972257898,-1134.57,0.00013863,2]
[332120068,1720972257908,-475.78,0.00013863,2]
[332120069,1720972257917,-500.0,0.00013863,2]
[332120070,1720972257927,-500.0,0.00013863,2]
[332120071,1720972257936,-534.57,0.00013863,2]
[332120072,1720972257946,-500.0,0.00013863,2]
[332120073,1720972257955,-500.0,0.00013863,2]
[332120074,1720972257965,-578.3054278,0.00013863,2]
[332120075,1720972257975,-500.0,0.00013863,2]
[332120076,1720972257984,-378.64,0.00013863,2]
[332120077,1720972257994,-500.0,0.00013863,2]
[332120078,1720972258003,-500.0,0.00013863,2]
[332120079,1720972258013,-500.0,0.00013863,2]
[332120080,1720972258022,-500.0,0.00013863,2]
[332120081,1720972258033,-863.4,0.00013863,2]
[332120082,1720972258042,-743.16,0.00013863,2]
[332120083,1720972258051,-500.0,0.00013863,2]
[332120084,1720972258061,-500.0,0.00013863,2]
[332120085,1720972258070,-716.88,0.00013863,2]
[332120086,1720972258080,-500.0,0.00013863,2]
[332120087,1720972258089,-2047.74,0.00013863,2]
[332120088,1720972258098,-567.13,0.00013863,2]
[332120089,1720972258107,-204.72,0.00013863,2]
[332120090,1720972258117,-1058.64,0.00013863,2]
[332120091,1720972258126,-500.0,0.00013863,2]
[332120092,1720972258135,-500.0,0.00013863,2]
[332120093,1720972258145,-945.97,0.00013863,2]
[332120094,1720972258154,-528.1,0.00013863,2]
[332120095,1720972258164,-500.0,0.00013863,2]
[332120096,1720972258174,-1598.27,0.00013863,2]
[332120097,1720972258184,-532.64,0.00013863,2]
[332120098,1720972258193,-500.0,0.00013863,2]
[332120099,1720972258202,-609.42,0.00013863,2]
[332120100,1720972258212,-317.86179062,0.00013863,2]
[332120101,1720972258222,-6027.45,0.00013863,2]
[332120102,1720972258232,-500.0,0.00013863,2]
[332120103,1720972258242,-904.14,0.00013863,2]
[332120104,1720972258251,-577.69,0.00013863,2]